fUSD/lending_fUSD_20240119
["ID","MTS","AMOUNT","RATE_DAILY","PERIOD"]
[312162825,1705674664164,-1264.66,0.00022465,2]
[312162826,1705674664174,-6741.56,0.00022465,2]
[312162827,1705674664184,-500.0,0.00022465,2]
[312162828,1705674664194,-500.0,0.00022465,2]
[312162829,1705674664205,-500.0,0.00022465,2]
[312162830,1705674664215,-500.0,0.00022465,2]
[312162831,1705674664229,-604.37,0.00022465,2]
[312162832,1705674664240,-1687.35,0.00022465,2]
[312162833,1705674664251,-516.56,0.00022465,2]
[312162834,1705674664261,-605.05,0.00022465,2]
[312162835,1705674664271,-1288.35,0.00022465,2]
[312162836,1705674664281,-500.0,0.00022465,2]
[312162837,1705674664292,-5391.31,0.00022465,2]
[312162838,1705674664302,-1647.86,0.00022465,2]
[312162839,1705674664312,-500.0,0.00022465,2]
[312162840,1705674664322,-824.94,0.00022465,2]
[312162841,1705674664332,-500.0,0.00022465,2]
[312162842,1705674664343,-654.71,0.00022465,2]
[312162843,1705674664353,-1662.1,0.00022465,2]
[312162844,1705674664363,-1467.43,0.00022465,2]
[312162845,1705674664374,-500.0,0.00022465,2]
[312162846,1705674664385,-541.73,0.00022465,2]
[312162847,1705674664395,-2497.65,0.00022465,2]
[312162848,1705674664406,-827.16,0.00022465,2]
[312162849,1705674664416,-617.14,0.00022465,5]
[312162850,1705674664426,-798.92,0.00022465,2]
[312162851,1705674664437,-1554.52,0.00022465,2]
[312162852,1705674664447,-796.96,0.00022465,2]
[312162853,1705674664458,-1197.62,0.00022465,2]
[312162854,1705674664468,-538.86,0.00022465,2]
[312162855,1705674664483,-500.0,0.00022465,2]
[312162856,1705674664495,-1671.21,0.00022465,2]
[312162857,1705674664506,-1262.62,0.00022465,2]
[312162858,1705674664518,-500.0,0.00022465,2]
[312162859,1705674664529,-500.0,0.00022465,2]
[312162860,1705674664540,-500.0,0.00022465,2]
[312162861,1705674664551,-500.0,0.00022465,2]
[312162862,1705674664563,-1641.24,0.00022465,2]
[312162863,1705674664575,-867.33,0.00022465,2]
[312162864,1705674664586,-500.0,0.00022465,2]
[312162865,1705674664597,-3333.86,0.00022465,2]
[312162866,1705674664609,-561.95,0.00022465,2]
[312162867,1705674664621,-755.8,0.00022476,2]
[312162868,1705674664633,-158.37,0.00022484,2]
[312162869,1705674664646,-150.0,0.00022487,2]
[312162870,1705674664658,-157.44,0.0002249,2]
[312162871,1705674664671,-150.0,0.00022493,2]
[312162872,1705674664682,-150.0,0.00022493,2]
[312162873,1705674664693,-300.0,0.00022493,2]
[312162874,1705674664704,-562.98,0.00022493,2]
[312162875,1705674664715,-164.5,0.00022493,2]
[312162876,1705674664727,-150.0,0.00022493,2]
[312162877,1705674664744,-150.0,0.00022493,2]
[312162878,1705674664755,-150.0,0.00022493,2]
[312162879,1705674664766,-294.39,0.00022493,2]
[312162880,1705674664776,-150.0,0.00022493,2]
[312162881,1705674664786,-294.39,0.00022493,2]
[312162882,1705674664797,-408.64,0.00022493,2]
[312162883,1705674664808,-150.0,0.00022493,2]
[312162884,1705674664818,-294.39,0.00022493,2]
[312162885,1705674664829,-8452.14552393,0.000225,2]
[312162886,1705674664840,-376.22518156,0.000225,6]
[312162887,1705674664851,-154.85,0.000225,2]
[312162888,1705674664861,-293.0,0.00022576,2]
[312162889,1705674664871,-400.0,0.00022598,2]
[312162890,1705674664881,-3464.0,0.000226,2]
[312162891,1705674664893,-34956.0,0.000226,2]
[312162892,1705674664904,-150.0,0.000226,2]
[312162893,1705674664914,-250.0,0.000226,2]
[312162894,1705674664925,-1500.0,0.000226,2]
[312162895,1705674664935,-151.0,0.000226,7]
[312162896,1705674664946,-180.0,0.00022603,2]
[312162897,1705674664957,-18613.64350954,0.00022614,2]
[312162898,1705674664967,-1274.67845146,0.00022639,2]
[312162899,1705674664978,-200.0,0.00022648,2]
[312162900,1705674664993,-150.0,0.0002265,2]
[312162901,1705674665003,-533.6845424,0.00022667,2]
[312162902,1705674665014,-1500.0,0.00022689,2]
[312162903,1705674665024,-157.44,0.00022693,2]
[312162904,1705674665035,-155.0,0.00022701,2]
[312162905,1705674665046,-1500.0,0.00022721,2]
[312162906,1705674665057,-1081.0,0.0002273,2]
[312162907,1705674665067,-151.0,0.00022739,7]
[312162908,1705674665077,-500.0,0.00022739,2]
[312162909,1705674665088,-500.0,0.00022739,2]
[312162910,1705674665099,-630.55890444,0.00022739,2]
[312162911,1705674665110,-707.27,0.00022739,2]
[312162912,1705674665121,-500.0,0.00022739,2]
[312162913,1705674665131,-500.0,0.00022739,2]
[312162914,1705674665143,-902.43,0.00022739,2]
[312162915,1705674665153,-500.0,0.00022739,2]
[312162916,1705674665164,-500.0,0.00022739,2]
[312162917,1705674665175,-500.0,0.00022739,2]
[312162918,1705674665186,-512.07,0.00022739,2]
[312162919,1705674665197,-543.02,0.00022739,2]
[312162920,1705674665208,-785.51,0.00022739,2]
[312162921,1705674665220,-500.0,0.00022739,2]
[312162922,1705674665235,-500.0,0.00022739,2]
[312162923,1705674665246,-500.0,0.00022739,2]
[312162924,1705674665256,-500.0,0.00022739,2]
[312162925,1705674665267,-500.0,0.00022739,2]
[312162926,1705674665278,-500.0,0.00022739,2]
[312162927,1705674665289,-500.0,0.00022739,2]
[312162928,1705674665300,-500.0,0.00022739,2]
[312162929,1705674665310,-500.0,0.00022739,2]
[312162930,1705674665320,-500.0,0.00022739,2]
[312162931,1705674665330,-500.0,0.00022739,2]
[312162932,1705674665341,-521.03,0.00022739,2]
[312162933,1705674665351,-500.0,0.00022739,2]
[312162934,1705674665361,-500.0,0.00022739,2]
[312162935,1705674665373,-571.67,0.00022739,2]
[312162936,1705674665384,-500.0,0.00022739,2]
[312162937,1705674665395,-500.0,0.00022739,2]
[312162938,1705674665405,-500.0,0.00022739,2]
[312162939,1705674665415,-302.93025849,0.00022739,2]
[312162940,1705674665426,-500.0,0.00022739,2]
[312162941,1705674665436,-500.0,0.00022739,2]
[312162942,1705674665447,-500.0,0.00022739,2]
[312162943,1705674665457,-528.35,0.00022739,2]
[312162944,1705674665468,-500.0,0.00022739,2]
[312162945,1705674665479,-500.0,0.00022739,2]
[312162946,1705674665491,-1000.0,0.00022739,10]
[312162947,1705674665502,-500.0,0.00022739,2]
[312162948,1705674665513,-500.0,0.00022739,2]
[312162949,1705674665523,-500.0,0.00022739,2]
[312162950,1705674665534,-500.0,0.00022739,2]
[312162951,1705674665545,-500.0,0.00022739,2]
[312162952,1705674665555,-500.0,0.00022739,2]
[312162953,1705674665566,-500.0,0.00022739,2]
[312162954,1705674665577,-500.0,0.00022739,2]
[312162955,1705674665587,-500.0,0.00022739,2]
[312162956,1705674665599,-500.0,0.00022739,2]
[312162957,1705674665610,-500.0,0.00022739,2]
[312162958,1705674665621,-803.94,0.00022739,2]
[312162959,1705674665632,-500.0,0.00022739,2]
[312162960,1705674665644,-500.0,0.00022739,2]
[312162961,1705674665654,-500.0,0.00022739,2]
[312162962,1705674665664,-500.0,0.00022739,2]
[312162963,1705674665675,-852.68,0.00022739,2]
[312162964,1705674665686,-500.0,0.00022739,2]
[312162965,1705674665696,-500.0,0.00022739,2]
[312162966,1705674665707,-500.0,0.00022739,2]
[312162967,1705674665718,-500.0,0.00022739,2]
[312162968,1705674665728,-500.0,0.00022739,2]
[312162969,1705674665743,-512.05270614,0.00022739,2]
[312162970,1705674665755,-500.0,0.00022739,2]
[312162971,1705674665766,-500.0,0.00022739,2]
[312162972,1705674665776,-500.0,0.00022739,2]
[312162973,1705674665787,-500.0,0.00022739,2]
[312162974,1705674665797,-500.0,0.00022739,2]
[312162975,1705674665809,-506.14,0.00022739,2]
[312162976,1705674665820,-1006.1,0.00022739,2]
[312162977,1705674665830,-500.0,0.00022739,2]
[312162978,1705674665842,-556.1,0.00022739,2]
[312162979,1705674665853,-500.0,0.00022739,2]
[312162980,1705674665864,-500.0,0.00022739,2]
[312162981,1705674665875,-500.0,0.00022739,2]
[312162982,1705674665886,-500.0,0.00022739,2]
[312162983,1705674665897,-500.0,0.00022739,2]
[312162984,1705674665908,-500.0,0.00022739,2]
[312162985,1705674665919,-500.0,0.00022739,2]
[312162986,1705674665930,-500.0,0.00022739,2]
[312162987,1705674665941,-500.0,0.00022739,2]
[312162988,1705674665951,-550.99,0.00022739,2]
[312162989,1705674665962,-500.0,0.00022739,2]
[312162990,1705674665972,-566.41,0.00022739,2]
[312162991,1705674665983,-500.0,0.00022739,2]
[312162992,1705674665994,-500.0,0.00022739,2]
[312162993,1705674666004,-500.0,0.00022739,2]
[312162994,1705674666015,-500.0,0.00022739,2]
[312162995,1705674666025,-666.97,0.00022739,2]
[312162996,1705674666035,-756.54,0.00022739,2]
[312162997,1705674666046,-500.0,0.00022739,2]
[312162998,1705674666058,-236.53501061,0.00022739,2]
[312162999,1705674666068,-864.28,0.00022739,2]
[312163000,1705674666079,-490.39752899,0.00022739,2]
[312163001,1705674666089,-733.43,0.00022739,2]
[312163002,1705674666100,-500.0,0.00022739,2]
[312163003,1705674666110,-894.89,0.00022739,2]
[312163004,1705674666120,-640.01,0.00022739,2]
[312163005,1705674666131,-500.0,0.00022739,2]
[312163006,1705674666141,-500.0,0.00022739,2]
[312163007,1705674666151,-803.93,0.00022739,2]
[312163008,1705674666161,-1124.29,0.00022739,2]
[312163009,1705674666172,-500.0,0.00022739,2]
[312163010,1705674666182,-500.0,0.00022739,2]
[312163011,1705674666291,-500.0,0.00022739,2]
[312163012,1705674666302,-500.0,0.00022739,2]
[312163013,1705674666312,-500.0,0.00022739,2]
[312163014,1705674666323,-500.0,0.00022739,2]
[312163015,1705674666334,-555.71,0.00022739,2]
[312163016,1705674666345,-500.0,0.00022739,2]
[312163017,1705674666355,-557.11,0.00022739,2]
[312163018,1705674666365,-518.9,0.00022739,2]
[312163019,1705674666375,-500.0,0.00022739,2]
[312163020,1705674666386,-1239.37,0.00022739,2]
[312163021,1705674666396,-500.0,0.00022739,2]
[312163022,1705674666406,-500.0,0.00022739,2]
[312163023,1705674666416,-500.0,0.00022739,2]
[312163024,1705674666426,-500.0,0.00022739,2]
[312163025,1705674666436,-500.0,0.00022739,2]
[312163026,1705674666446,-500.0,0.00022739,2]
[312163027,1705674666456,-500.0,0.00022739,2]
[312163028,1705674666466,-500.0,0.00022739,2]
[312163029,1705674666477,-500.0,0.00022739,2]
[312163030,1705674666491,-500.0,0.00022739,2]
[312163031,1705674666502,-500.0,0.00022739,2]
[312163032,1705674666512,-573.97283767,0.00022739,2]
[312163033,1705674666523,-500.0,0.00022739,2]
[312163034,1705674666538,-928.59,0.00022739,2]
[312163035,1705674666549,-1265.34,0.00022739,2]
[312163036,1705674666562,-541.16,0.00022739,2]
[312163037,1705674666574,-500.0,0.00022739,2]
[312163038,1705674666585,-500.0,0.00022739,2]
[312163039,1705674666596,-608.78,0.00022739,2]
[312163040,1705674666606,-514.65,0.00022739,2]
[312163041,1705674666617,-552.53,0.00022739,2]
[312163042,1705674666626,-500.0,0.00022739,2]
[312163043,1705674666637,-500.0,0.00022739,2]
[312163044,1705674666647,-847.01,0.00022739,2]
[312163045,1705674666660,-500.0,0.00022739,2]
[312163046,1705674666671,-500.0,0.00022739,2]
[312163047,1705674666682,-500.0,0.00022739,2]
[312163048,1705674666692,-500.0,0.00022739,2]
[312163049,1705674666703,-500.0,0.00022739,2]
[312163050,1705674666713,-535.98,0.00022739,2]
[312163051,1705674666723,-500.0,0.00022739,2]
[312163052,1705674666737,-558.76,0.00022739,2]
[312163053,1705674666748,-500.0,0.00022739,2]
[312163054,1705674666759,-500.0,0.00022739,2]
[312163055,1705674666769,-500.0,0.00022739,2]
[312163056,1705674666779,-886.82,0.00022739,2]
[312163057,1705674666789,-500.0,0.00022739,2]
[312163058,1705674666799,-500.0,0.00022739,2]
[312163059,1705674666809,-651.62,0.00022739,2]
[312163060,1705674666819,-869.62,0.00022739,2]
[312163061,1705674666830,-500.0,0.00022739,2]
[312163062,1705674666840,-500.0,0.00022739,2]
[312163063,1705674666851,-500.0,0.00022739,2]
[312163064,1705674666860,-634.56411258,0.00022739,2]
[312163065,1705674666870,-766.07,0.00022739,2]
[312163066,1705674666881,-500.0,0.00022739,2]
[312163067,1705674666891,-500.0,0.00022739,2]
[312163068,1705674666901,-506.13,0.00022739,2]
[312163069,1705674666913,-588.85,0.00022739,2]
[312163070,1705674666923,-233.06,0.00022739,2]
[312163071,1705674666933,-500.0,0.00022739,2]
[312163072,1705674666943,-572.98,0.00022739,2]
[312163073,1705674666953,-517.27,0.00022739,2]
[312163074,1705674666964,-715.18,0.00022739,2]
[312163075,1705674666974,-630.94,0.00022739,2]
[312163076,1705674666986,-500.0,0.00022739,2]
[312163077,1705674666996,-500.0,0.00022739,2]
[312163078,1705674667007,-847.73,0.00022739,2]
[312163079,1705674667016,-1237.47,0.00022739,2]
[312163080,1705674667026,-717.44,0.00022739,2]
[312163081,1705674667036,-500.0,0.00022739,2]
[312163082,1705674667047,-500.0,0.00022739,2]
[312163083,1705674667057,-512.98,0.00022739,2]
[312163084,1705674667067,-500.0,0.00022739,2]
[312163085,1705674667078,-500.0,0.00022739,2]
[312163086,1705674667087,-500.0,0.00022739,2]
[312163087,1705674667098,-362.97232589,0.00022739,2]
[312163088,1705674667108,-500.0,0.00022739,2]
[312163089,1705674667118,-737.83,0.00022739,2]
[312163090,1705674667128,-500.0,0.00022739,2]
[312163091,1705674667138,-500.0,0.00022739,2]
[312163092,1705674667149,-500.0,0.00022739,2]
[312163093,1705674667159,-1372.6,0.00022739,2]
[312163094,1705674667170,-500.0,0.00022739,2]
[312163095,1705674667180,-500.0,0.00022739,2]
[312163096,1705674667190,-500.0,0.00022739,2]
[312163097,1705674667201,-500.0,0.00022739,2]
[312163098,1705674667211,-500.0,0.00022739,2]
[312163099,1705674667221,-560.24,0.00022739,2]
[312163100,1705674667233,-910.01,0.00022739,2]
[312163101,1705674667243,-622.13,0.00022739,2]
[312163102,1705674667254,-923.43,0.00022739,2]
[312163103,1705674667264,-500.0,0.00022739,2]
[312163104,1705674667274,-1039.82,0.00022739,2]
[312163105,1705674667284,-725.5,0.00022739,2]
[312163106,1705674667295,-550.84,0.00022739,2]
[312163107,1705674667305,-500.0,0.00022739,2]
[312163108,1705674667315,-500.0,0.00022739,2]
[312163109,1705674667325,-881.4,0.00022739,2]
[312163110,1705674667336,-774.84,0.00022739,2]
[312163111,1705674667358,-500.0,0.00022739,2]
[312163112,1705674667381,-500.0,0.00022739,2]
[312163113,1705674667403,-500.0,0.00022739,2]
[312163114,1705674667425,-500.0,0.00022739,2]
[312163115,1705674667449,-586.22,0.00022739,2]
[312163116,1705674667471,-534.43,0.00022739,2]
[312163117,1705674667494,-636.62,0.00022739,2]
[312163118,1705674667515,-500.0,0.00022739,2]
[312163119,1705674667534,-713.47,0.00022739,2]
[312163120,1705674667556,-959.84,0.00022739,2]
[312163121,1705674667568,-500.0,0.00022739,2]
[312163122,1705674667579,-500.0,0.00022739,2]
[312163123,1705674667590,-578.16,0.00022739,2]
[312163124,1705674667601,-500.0,0.00022739,2]
[312163125,1705674667611,-500.0,0.00022739,2]
[312163126,1705674667621,-500.0,0.00022739,2]
[312163127,1705674667632,-500.0,0.00022739,2]
[312163128,1705674667643,-500.0,0.00022739,2]
[312163129,1705674667654,-999.09,0.00022739,2]
[312163130,1705674667664,-500.0,0.00022739,2]
[312163131,1705674667675,-500.0,0.00022739,2]
[312163132,1705674667685,-500.0,0.00022739,2]
[312163133,1705674667697,-682.87,0.00022739,2]
[312163134,1705674667707,-565.49,0.00022739,2]
[312163135,1705674667718,-915.17,0.00022739,2]
[312163136,1705674667728,-500.0,0.00022739,2]
[312163137,1705674667740,-592.67,0.00022739,2]
[312163138,1705674667751,-500.0,0.00022739,2]
[312163139,1705674667761,-500.0,0.00022739,2]
[312163140,1705674667771,-500.0,0.00022739,2]
[312163141,1705674667781,-500.0,0.00022739,7]
[312163142,1705674667791,-500.0,0.00022739,2]
[312163143,1705674667802,-500.0,0.00022739,2]
[312163144,1705674667812,-547.8,0.00022739,2]
[312163145,1705674667822,-500.0,0.00022739,2]
[312163146,1705674667832,-661.07,0.00022739,2]
[312163147,1705674667842,-621.88,0.00022739,2]
[312163148,1705674667853,-500.0,0.00022739,2]
[312163149,1705674667863,-658.77,0.00022739,2]
[312163150,1705674667874,-814.59,0.00022739,2]
[312163151,1705674667884,-620.1,0.00022739,2]
[312163152,1705674667894,-500.0,0.00022739,2]
[312163153,1705674667905,-500.0,0.00022739,2]
[312163154,1705674667916,-500.0,0.00022739,2]
[312163155,1705674667926,-1051.71,0.00022739,2]
[312163156,1705674667937,-180.94232822,0.00022739,2]
[312163157,1705674667946,-1871.07,0.00022739,2]
[312163158,1705674667956,-507.26,0.00022739,2]
[312163159,1705674667966,-1122.09,0.00022739,2]
[312163160,1705674667977,-500.0,0.00022739,2]
[312163161,1705674667990,-500.0,0.00022739,2]
[312163162,1705674668001,-1073.38,0.00022739,2]
[312163163,1705674668011,-500.0,0.00022739,2]
[312163164,1705674668021,-681.46,0.00022739,2]
[312163165,1705674668032,-609.04,0.00022739,2]
[312163166,1705674668042,-500.0,0.00022739,2]
[312163167,1705674668053,-500.0,0.00022739,2]
[312163168,1705674668063,-500.0,0.00022739,2]
[312163169,1705674668074,-500.0,0.00022739,2]
[312163170,1705674668084,-684.05,0.00022739,2]
[312163171,1705674668094,-891.26,0.00022739,2]
[312163172,1705674668105,-536.25,0.00022739,2]
[312163173,1705674668115,-500.0,0.00022739,2]
[312163174,1705674668125,-500.0,0.00022739,2]
[312163175,1705674668135,-500.0,0.00022739,2]
[312163176,1705674668146,-921.86,0.00022739,2]
[312163177,1705674668157,-548.46,0.00022739,2]
[312163178,1705674668167,-500.0,0.00022739,2]
[312163179,1705674668178,-718.86,0.00022739,2]
[312163180,1705674668188,-514.23,0.00022739,2]
[312163181,1705674668199,-759.76,0.00022739,2]
[312163182,1705674668209,-500.0,0.00022739,2]
[312163183,1705674668219,-581.17,0.00022739,2]
[312163184,1705674668230,-500.0,0.00022739,2]
[312163185,1705674668244,-579.17,0.00022739,2]
[312163186,1705674668254,-500.0,0.00022739,2]
[312163187,1705674668265,-500.0,0.00022739,2]
[312163188,1705674668275,-899.48,0.00022739,2]
[312163189,1705674668286,-500.0,0.00022739,2]
[312163190,1705674668297,-520.46,0.00022739,2]
[312163191,1705674668307,-564.45,0.00022739,2]
[312163192,1705674668318,-500.0,0.00022739,2]
[312163193,1705674668327,-1056.49,0.00022739,2]
[312163194,1705674668337,-539.4,0.00022739,2]
[312163195,1705674668348,-525.71,0.00022739,2]
[312163196,1705674668358,-500.0,0.00022739,2]
[312163197,1705674668368,-1035.53,0.00022739,2]
[312163198,1705674668378,-950.46,0.00022739,2]
[312163199,1705674668389,-500.0,0.00022739,2]
[312163200,1705674668399,-841.77,0.00022739,2]
[312163201,1705674668408,-1004.01,0.00022739,2]
[312163202,1705674668418,-511.72,0.00022739,2]
[312163203,1705674668427,-773.82,0.00022739,2]
[312163204,1705674668438,-500.0,0.00022739,2]
[312163205,1705674668447,-500.0,0.00022739,2]
[312163206,1705674668457,-500.0,0.00022739,2]
[312163207,1705674668467,-831.13,0.00022739,2]
[312163208,1705674668477,-807.35,0.00022739,2]
[312163209,1705674668490,-500.0,0.00022739,2]
[312163210,1705674668499,-500.0,0.00022739,2]
[312163211,1705674668509,-3109.38,0.00022739,2]
[312163212,1705674668518,-896.34,0.00022739,2]
[312163213,1705674668527,-687.96,0.00022739,2]
[312163214,1705674668537,-1114.15,0.00022739,2]
[312163215,1705674668547,-659.78,0.00022739,2]
[312163216,1705674668558,-758.37,0.00022739,2]
[312163217,1705674668568,-500.0,0.00022739,2]
[312163218,1705674668578,-570.22,0.00022739,2]
[312163219,1705674668588,-500.0,0.00022739,2]
[312163220,1705674668598,-500.0,0.00022739,2]
[312163221,1705674668607,-500.0,0.00022739,2]
[312163222,1705674668617,-755.62,0.00022739,2]
[312163223,1705674668629,-1088.69,0.00022739,2]
[312163224,1705674668639,-2162.24,0.00022739,2]
[312163225,1705674668649,-500.0,0.00022739,2]
[312163226,1705674668660,-500.0,0.00022739,2]
[312163227,1705674668671,-500.0,0.00022739,2]
[312163228,1705674668681,-1062.76,0.00022739,2]
[312163229,1705674668690,-612.29,0.00022739,2]
[312163230,1705674668700,-2396.2,0.00022739,2]
[312163231,1705674668711,-500.0,0.00022739,2]
[312163232,1705674668721,-500.0,0.00022739,2]
[312163233,1705674668731,-565.53,0.00022739,2]
[312163234,1705674668743,-668.85,0.00022739,2]
[312163235,1705674668753,-598.83,0.00022739,2]
[312163236,1705674668763,-508.81,0.00022739,2]
[312163237,1705674668772,-1080.49,0.00022739,2]
[312163238,1705674668783,-2041.51,0.00022739,2]
[312163239,1705674668793,-834.41,0.00022739,2]
[312163240,1705674668804,-604.66,0.00022739,2]
[312163241,1705674668814,-794.08,0.00022739,2]
[312163242,1705674668824,-500.0,0.00022739,2]
[312163243,1705674668834,-935.21,0.00022739,2]
[312163244,1705674668844,-942.04,0.00022739,2]
[312163245,1705674668853,-500.0,0.00022739,2]
[312163246,1705674668863,-1596.53,0.00022739,2]
[312163247,1705674668873,-992.82,0.00022739,2]
[312163248,1705674668883,-500.0,0.00022739,2]
[312163249,1705674668893,-841.54,0.00022739,2]
[312163250,1705674668903,-500.0,0.00022739,2]
[312163251,1705674668913,-500.0,0.00022739,2]
[312163252,1705674668922,-500.0,0.00022739,2]
[312163253,1705674668932,-1220.64,0.00022739,2]
[312163254,1705674668942,-907.37,0.00022739,2]
[312163255,1705674668951,-2116.41,0.00022739,2]
[312163256,1705674668961,-500.0,0.00022739,2]
[312163257,1705674668970,-500.0,0.00022739,2]
[312163258,1705674668979,-3104.05,0.00022739,2]
[312163259,1705674668991,-625.97,0.00022739,2]
[312163260,1705674669001,-1045.61,0.00022739,2]
[312163261,1705674669011,-500.0,0.00022739,2]
[312163262,1705674669020,-500.0,0.00022739,2]
[312163263,1705674669030,-500.0,0.00022739,2]
[312163264,1705674669039,-973.18,0.00022739,2]
[312163265,1705674669049,-1342.7,0.00022739,2]
[312163266,1705674669059,-500.0,0.00022739,2]
[312163267,1705674669069,-1590.89,0.00022739,2]
[312163268,1705674669078,-500.0,0.00022739,2]
[312163269,1705674669089,-774.58,0.00022739,2]
[312163270,1705674669100,-925.53,0.00022739,2]
[312163271,1705674669110,-854.66,0.00022739,2]
[312163272,1705674669121,-834.36,0.00022739,2]
[312163273,1705674669131,-500.0,0.00022739,2]
[312163274,1705674669141,-213.82,0.00022739,2]
[312163275,1705674669151,-1485.93,0.00022739,2]
[312163276,1705674669161,-1774.31,0.00022739,2]
[312163277,1705674669171,-500.0,0.00022739,2]
[312163278,1705674669181,-500.0,0.00022739,2]
[312163279,1705674669192,-2260.08,0.00022739,2]
[312163280,1705674669202,-584.48,0.00022739,2]
[312163281,1705674669212,-1527.06,0.00022739,2]
[312163282,1705674669222,-500.0,0.00022739,2]
[312163283,1705674669232,-804.55,0.00022739,2]
[312163284,1705674669243,-648.29,0.00022739,2]
[312163285,1705674669253,-1390.89,0.00022739,2]
[312163286,1705674669263,-1877.21,0.00022739,2]
[312163287,1705674669273,-500.0,0.00022739,5]
[312163288,1705674669283,-500.0,0.00022739,2]
[312163289,1705674669293,-3022.81,0.00022739,2]
[312163290,1705674669303,-900.94,0.00022739,2]
[312163291,1705674669313,-500.0,0.00022739,2]
[312163292,1705674669323,-1574.26,0.00022739,2]
[312163293,1705674669333,-500.0,0.00022739,2]
[312163294,1705674669343,-500.0,0.00022739,2]
[312163295,1705674669353,-500.0,0.00022739,2]
[312163296,1705674669363,-6093.79,0.00022739,2]
[312163297,1705674669372,-500.0,0.00022739,2]
[312163298,1705674669382,-1118.13,0.00022739,2]
[312163299,1705674669392,-652.23,0.00022739,2]
[312163300,1705674669402,-502.55,0.00022739,2]
[312163301,1705674669412,-1115.85,0.00022739,2]
[312163302,1705674669421,-500.0,0.00022739,2]
[312163303,1705674669431,-2563.91,0.00022739,2]
[312163304,1705674669441,-2341.41,0.00022739,2]
[312163305,1705674669451,-500.0,0.00022739,2]
[312163306,1705674669460,-810.7,0.00022739,2]
[312163307,1705674669470,-500.0,0.00022739,2]
[312163308,1705674669480,-2005.36,0.00022739,2]
[312163309,1705674669491,-602.05,0.00022739,2]
[312163310,1705674669500,-1103.28,0.00022739,2]
[312163311,1705674669510,-707.49,0.00022739,2]
[312163312,1705674669520,-500.0,0.00022739,2]
[312163313,1705674669530,-581.35,0.00022739,2]
[312163314,1705674669539,-500.0,0.00022739,2]
[312163315,1705674669549,-3924.46,0.00022739,2]
[312163316,1705674669559,-500.0,0.00022739,2]
[312163317,1705674669569,-500.0,0.00022739,2]
[312163318,1705674669579,-563.69,0.00022739,2]
[312163319,1705674669589,-500.0,0.00022739,2]
[312163320,1705674669599,-8501.89,0.00022739,2]
[312163321,1705674669609,-500.0,0.00022739,2]
[312163322,1705674669620,-527.48,0.00022739,2]
[312163323,1705674669631,-500.0,0.00022739,2]
[312163324,1705674669643,-500.0,0.00022739,2]